bitfinex-derivatives/quotes_ETHF0:USTF0_20240920
["timestamp","ask_amount","ask_price","bid_price","bid_amount"]
[1726796920538,0.40736,2454.2,2453.9,4.0069]
[1726796920741,0.814,2454.3,2453.9,4.0069]
[1726796920742,1.22135,2454.3,2453.9,4.0069]
[1726796921239,0.814,2454.3,2453.9,4.4143]
[1726796921442,1.22135,2454.3,2453.9,4.0069]
[1726796922147,3.2078,2454.5,2453.9,4.0069]
[1726796922148,3.2078,2454.5,2454.1,0.40736]
[1726796922439,0.8115,2454.6,2454.1,0.40736]
[1726796923231,0.4042,2454.6,2454.3,3.18]
[1726796923432,0.4042,2454.6,2454.4,1.2028]
[1726796924034,0.81149,2454.6,2454.4,1.2028]
[1726796924232,4.23869565,2454.8,2454.4,1.2028]
[1726796924233,4.121,2454.8,2454.4,1.2028]
[1726796924541,4.121,2454.8,2454.5,0.4073]
[1726796924838,3.2078,2454.9,2454.5,0.4073]
[1726796925039,0.40727,2454.8,2454.4,1.2028]
[1726796925239,3.61505,2454.9,2454.4,1.2028]
[1726796925447,3.61505,2454.9,2454.4,1.61011]
[1726796926142,3.61505,2454.9,2454.5,0.40731]
[1726796926340,0.40727,2454.8,2454.4,1.2028]
[1726796926537,0.40729,2454.7,2454.4,1.2028]
[1726796926746,0.40729,2454.6,2454.4,1.2028]
[1726796928151,0.40729,2454.6,2454.4,0.3876]
[1726796928341,0.8108,2454.5,2454.4,0.3876]
[1726796928744,1.21811,2454.5,2454.4,0.3876]
[1726796929039,1.21811,2454.5,2454.1,1.64107]
[1726796929243,0.8108,2454.5,2454.1,1.64107]
[1726796929446,0.8108,2454.5,2454.1,1.2337]
[1726796929748,0.40736,2454.2,2454.1,0.418]
[1726796931045,0.40736,2454.2,2453.9,0.8402]
[1726796931246,3.18,2454.0,2453.5,3.2078]
[1726796931540,0.83512,2453.9,2453.6,0.4015]
[1726796931734,0.4277,2453.9,2453.6,0.4015]
[1726796931938,3.18,2453.8,2453.5,3.2078]
[1726796932135,0.40744,2453.7,2453.3,1.2417]
[1726796932335,3.58744,2453.8,2453.3,1.64921]
[1726796932733,0.4277,2453.9,2453.3,1.64921]
[1726796932734,0.83512,2453.9,2453.3,1.64921]
[1726796932939,0.40743,2453.8,2453.3,1.64921]
[1726796933238,6.7952,2454.0,2453.3,1.2417]
[1726796933436,6.7952,2454.0,2453.4,0.40749]
[1726796933632,6.7952,2454.0,2453.4,0.40748]
[1726796933633,6.3878,2454.0,2453.4,0.40748]
[1726796933845,6.7952,2454.0,2453.4,0.40748]
[1726796934042,6.7952,2454.0,2453.3,1.2417]
[1726796934448,0.40741,2453.9,2453.4,0.40748]
[1726796934840,6.7952,2454.0,2453.4,0.40748]
[1726796935540,0.40741,2453.9,2453.4,0.40748]
[1726796936140,6.3878,2454.0,2453.3,1.2417]
[1726796936549,0.40742,2453.9,2453.4,0.40748]
[1726796937445,6.3878,2454.0,2453.3,1.2417]
[1726796937644,0.40741,2453.9,2453.4,0.40748]
[1726796939344,0.40743,2453.8,2453.3,1.64919]
[1726796939746,0.40743,2453.8,2453.4,0.40749]
[1726796940147,0.40743,2453.8,2453.3,1.6492]
[1726796940455,0.8485,2453.7,2453.4,0.40749]
[1726796940640,0.8485,2453.7,2453.3,1.6492]
[1726796940837,1.25595,2453.7,2453.3,1.2417]
[1726796942352,1.25595,2453.7,2453.3,1.6492]
[1726796942353,0.8485,2453.7,2453.3,1.6492]
[1726796942542,0.8485,2453.7,2453.4,0.40748]
[1726796942739,0.8485,2453.7,2453.3,1.6492]
[1726796944046,0.40746,2453.6,2453.3,1.2417]
[1726796944254,0.40747,2453.6,2453.3,1.2417]
[1726796944461,1.64875,2453.7,2453.3,1.2417]
[1726796944842,4.85655,2453.7,2453.3,1.2417]
[1726796945239,4.85655,2453.7,2453.3,1.64921]
[1726796945437,4.4491,2453.7,2453.3,1.64921]
[1726796946047,0.40741,2453.9,2453.4,0.40748]
[1726796949450,0.40743,2453.8,2453.4,0.40748]
[1726796949844,7.2128,2454.0,2453.4,3.2078]
[1726796950049,7.2128,2454.0,2453.4,0.40748]
[1726796950255,0.40743,2453.8,2453.4,0.40748]
[1726796950851,0.40742,2453.9,2453.5,0.40747]
[1726796951555,0.40743,2453.8,2453.4,0.40748]
[1726796951948,0.40744,2453.8,2453.4,0.40748]
[1726796952760,4.005,2454.0,2453.5,0.40747]
[1726796952957,0.40743,2453.8,2453.4,0.40748]
[1726796955148,0.40745,2453.7,2453.3,1.6492]
[1726796955751,0.4183,2453.6,2453.3,1.6492]
[1726796956664,0.4183,2453.6,2453.4,0.40749]
[1726796957759,0.4183,2453.6,2453.3,1.6492]
[1726796958258,0.82576,2453.6,2453.3,1.2417]
[1726796958459,0.4,2453.5,2453.3,1.2417]
[1726796961359,3.2078,2453.4,2452.9,1.06578978]
[1726796961555,3.2078,2453.4,2453.0,0.4083]
[1726796961556,3.6324,2453.4,2453.0,0.4083]
[1726796961757,0.40751,2453.3,2453.0,0.4083]
[1726796961957,3.6324,2453.4,2453.0,0.4083]
[1726796962162,0.8321,2453.4,2453.0,0.4083]
[1726796962658,0.40751,2453.3,2453.0,0.4083]
[1726796963167,0.4025,2453.2,2453.0,0.4083]
[1726796966761,0.4174,2453.1,2453.0,0.4083]
[1726796967362,0.4174,2453.1,2452.5,7.45358978]
[1726796967363,3.5974,2453.1,2452.6,0.418]
[1726796967564,3.18,2452.9,2452.6,0.418]
[1726796968065,0.3907,2452.8,2452.6,0.418]
[1726796968368,0.3907,2452.8,2452.6,0.82562]
[1726796969065,3.6252,2453.1,2452.6,0.418]
[1726796969257,1.18599,2453.4,2452.8,3.18]
[1726796969573,1.18829,2453.4,2452.9,0.79906]
[1726796969767,1.18829,2453.4,2453.0,0.3952]
[1726796970368,0.7808,2453.4,2453.0,3.5752]
[1726796970575,4.121,2453.5,2453.2,0.40752]
[1726796970772,0.79357,2453.6,2453.3,0.7848]
[1726796971372,0.3861,2453.6,2453.3,0.7848]
[1726796971565,0.79356,2453.6,2453.3,0.7848]
[1726796971975,3.9857,2453.8,2453.4,3.18]
[1726796972175,3.9857,2453.8,2453.4,4.00588]
[1726796972176,3.984,2453.8,2453.4,4.00588]
[1726796972377,0.7762,2453.8,2453.5,0.40747]
[1726796972978,0.7762,2453.8,2453.4,4.00588]
[1726796973172,1.18363,2453.8,2453.4,4.00588]
[1726796974175,1.18363,2453.8,2453.4,0.82588]
[1726796974773,0.7762,2453.8,2453.4,0.82588]
[1726796976574,0.7762,2453.8,2453.4,1.89166978]
[1726796978375,1.18363,2453.8,2453.4,1.89166978]
[1726796978672,1.18363,2453.8,2453.4,0.82588]
[1726796980884,0.7762,2453.8,2453.4,0.4184]
[1726796981077,0.4213,2453.7,2453.4,0.82589]
[1726796981476,0.4213,2453.7,2453.3,3.9926]
[1726796981777,4.00875,2453.7,2453.3,4.4001]
[1726796981990,4.00875,2453.7,2453.3,0.7848]
[1726796983386,3.6013,2453.7,2453.3,1.19231]
[1726796983588,4.00875,2453.7,2453.3,0.7848]
[1726796983779,3.6013,2453.7,2453.3,1.19231]
[1726796984581,3.6013,2453.7,2453.3,0.3933]
[1726796984880,3.6013,2453.7,2453.1,0.3866]
[1726796984881,3.18,2453.5,2453.1,0.81903]
[1726796985086,0.4009,2453.4,2453.2,0.4043]
[1726796985381,0.8122,2453.4,2453.2,0.4043]
[1726796987483,1.21969,2453.4,2453.1,1.06578978]
[1726796987682,0.424,2453.3,2453.1,1.06578978]
[1726796989888,0.8122,2453.4,2453.2,0.40752]
[1726796990094,0.8122,2453.4,2453.2,1.21522]
[1726796990689,3.595,2453.7,2453.3,0.40751]
[1726796990893,4.81564,2453.7,2453.2,1.87348978]
[1726796991388,4.81564,2453.7,2453.3,0.40751]
[1726796991589,4.81564,2453.7,2453.2,2.28099978]
[1726796993090,4.81564,2453.7,2453.3,0.4075]
[1726796993594,4.81564,2453.7,2453.4,0.3906]
[1726796994298,1.2282,2453.7,2453.4,0.79809]
[1726796994591,4.9473,2454.0,2453.5,0.40746]
[1726796994787,0.817,2453.9,2453.6,0.4121]
[1726796997489,0.817,2453.9,2453.6,0.8308]
[1726796998494,6.3878,2454.2,2453.8,0.40742]
[1726796998495,6.79516,2454.2,2453.8,0.40742]
[1726796998685,0.8081,2454.1,2453.8,0.40742]
[1726796998887,0.8081,2454.1,2453.9,0.4123]
[1726797000294,0.8081,2454.1,2453.9,0.81971]
[1726797000494,4.121,2454.4,2454.0,4.0752]
[1726797000694,0.4023,2454.5,2454.2,0.40735]
[1726797000995,3.18,2454.3,2454.0,4.0026]
[1726797001197,0.4126,2454.2,2454.0,4.40999]
[1726797001409,0.4126,2454.2,2454.0,4.0026]
[1726797001591,3.5823,2454.5,2454.1,0.40736]
[1726797001786,3.9949,2454.5,2454.2,0.40736]
[1726797002296,3.9949,2454.5,2454.0,4.0026]
[1726797002491,3.18,2454.3,2454.0,3.2078]
[1726797002694,3.2078,2454.1,2453.9,0.4123]
[1726797002887,3.2078,2454.1,2453.6,1.45438978]
[1726797002888,6.79518,2454.1,2453.6,0.79605]
[1726797003093,0.8297,2454.0,2453.6,1.63365]
[1726797003798,0.8297,2454.0,2453.7,0.40744]
[1726797004398,3.18,2454.3,2453.6,4.4062]
[1726797004603,4.4307,2454.3,2453.8,0.40741]
[1726797005401,4.83805,2454.3,2453.8,0.40741]
[1726797005800,0.40736,2454.2,2453.7,0.40743]
[1726797006000,0.4074,2454.0,2453.6,1.2262]
[1726797006303,0.3952,2453.9,2453.6,1.2262]
[1726797006499,0.7915,2453.9,2453.6,1.2262]
[1726797007495,1.2074,2453.9,2453.6,1.63365]
[1726797007694,1.2074,2453.9,2453.6,1.2262]
[1726797007900,1.2074,2453.9,2453.6,1.63365]
[1726797008202,1.2074,2453.9,2453.6,1.2262]
[1726797009097,1.2074,2453.9,2453.6,0.8376]
[1726797009292,3.58745,2453.7,2453.2,1.06578978]
[1726797009496,3.18,2453.5,2453.2,1.06578978]
[1726797009695,0.4163,2453.4,2453.2,1.06578978]
[1726797009996,0.8177,2453.4,2453.1,1.06578978]
[1726797010193,0.8177,2453.4,2453.1,1.47332978]
[1726797011300,0.8177,2453.4,2453.1,1.47331978]
[1726797011491,0.8177,2453.4,2453.1,4.68111978]
[1726797011901,0.8177,2453.4,2453.2,0.40752]
[1726797012403,3.61523,2453.8,2453.3,0.4075]
[1726797012604,3.61523,2453.8,2453.4,0.81979]
[1726797012605,0.8104,2453.7,2453.4,0.81979]
[1726797013301,0.8104,2453.7,2453.4,0.4123]
[1726797014596,1.21784,2453.7,2453.4,0.4123]
[1726797015098,0.8104,2453.7,2453.4,0.4123]
[1726797015300,0.8104,2453.7,2453.4,0.81979]
[1726797015504,0.8104,2453.7,2453.5,0.418]
[1726797015700,3.2078,2453.8,2453.5,0.418]
[1726797015908,4.121,2454.0,2453.5,0.418]
[1726797015909,0.4248,2454.0,2453.7,0.40744]
[1726797017106,0.4248,2454.0,2453.6,0.81875]
[1726797018610,0.4248,2454.0,2453.7,0.40744]
[1726797019806,0.4248,2454.0,2453.6,0.81875]
[1726797020008,0.4218,2454.1,2453.6,3.5913]
[1726797020210,0.4218,2454.1,2453.8,0.40742]
[1726797020507,0.4218,2454.1,2453.9,0.40741]
[1726797020812,0.4218,2454.1,2453.8,0.40741]
[1726797021015,0.4218,2454.1,2453.9,0.4105]
[1726797021309,0.4218,2454.1,2453.9,0.8039]
[1726797021509,0.4218,2454.1,2453.9,1.21131]
[1726797021698,0.4218,2454.1,2453.9,0.8039]
[1726797022808,0.82918,2454.1,2453.9,0.8039]
[1726797023008,0.40742,2453.9,2453.7,3.2078]
[1726797023206,3.18,2454.0,2453.6,0.8049]
[1726797023510,0.3858,2453.8,2453.6,0.8049]
[1726797023709,0.3858,2453.8,2453.6,1.21236]
[1726797024812,0.4218,2454.1,2453.8,0.40742]
[1726797025008,0.82918,2454.1,2453.6,5.05068978]
[1726797025311,0.82918,2454.1,2453.7,0.82474]
[1726797026114,4.00919,2454.1,2453.7,0.4173]
[1726797026308,0.7949,2454.0,2453.7,0.4173]
[1726797026909,0.3875,2454.0,2453.7,0.4173]
[1726797027308,0.3955,2454.2,2453.9,0.40741]
[1726797027508,0.3955,2454.2,2454.0,0.3905]
[1726797028917,0.80286,2454.2,2453.7,4.03253]
[1726797029120,0.80287,2454.2,2453.7,4.0156]
[1726797029322,3.98287,2454.2,2453.7,4.0156]
[1726797029807,3.5755,2454.2,2453.7,4.0156]
[1726797030004,0.3955,2454.2,2453.8,0.40741]
[1726797030817,0.3952,2454.3,2453.7,5.08138978]
[1726797031015,0.3952,2454.3,2453.7,4.0156]
[1726797031318,0.3952,2454.3,2453.8,0.40742]
[1726797031614,0.3952,2454.3,2453.7,4.0156]
[1726797031615,0.3952,2454.3,2453.9,0.40741]
[1726797031810,0.3952,2454.3,2453.8,0.40742]
[1726797032015,0.3952,2454.3,2453.7,4.0156]
[1726797032310,0.80255,2454.3,2453.7,4.42303]
[1726797033515,0.3952,2454.3,2453.7,5.08138978]
[1726797033711,0.3952,2454.3,2453.9,0.40739]
[1726797034116,0.3952,2454.3,2454.0,0.3938]
[1726797034420,0.3952,2454.3,2454.1,0.3903]
[1726797036318,3.18,2454.2,2454.0,0.3938]
[1726797036519,3.58737,2454.2,2454.0,0.3938]
[1726797036815,0.4078,2454.1,2453.8,0.3858]
[1726797037022,0.4078,2454.1,2453.8,0.7834]
[1726797037719,0.4074,2454.0,2453.8,0.3976]
[1726797037910,0.4074,2454.0,2453.4,4.24578978]
[1726797037911,3.603,2453.9,2453.5,0.7743]
[1726797038115,4.01042,2453.9,2453.5,0.7743]
[1726797038716,3.603,2453.9,2453.5,0.7743]
[1726797038923,3.603,2453.9,2453.4,0.3976]
[1726797039122,0.40745,2453.7,2453.4,0.3976]
[1726797039615,0.4074,2453.6,2453.4,0.3976]
[1726797042719,3.5998,2454.0,2453.5,4.27358978]
[1726797042720,0.4145,2454.0,2453.5,4.27358978]
[1726797043025,0.4145,2454.0,2453.7,0.40743]
[1726797043221,0.8414,2454.3,2453.8,1.19651]
[1726797043423,0.4247,2454.3,2453.8,1.58851]
[1726797043622,0.4247,2454.3,2453.9,0.40741]
[1726797044012,0.4247,2454.3,2453.8,1.1811]
[1726797044215,0.4247,2454.3,2453.8,1.58852]
[1726797044527,0.83204,2454.3,2453.8,1.58852]
[1726797046128,0.4247,2454.3,2453.8,1.58852]
[1726797046823,0.83204,2454.3,2453.8,1.1811]
[1726797047027,0.40736,2454.2,2453.8,1.1811]
[1726797047423,0.40736,2454.2,2453.8,0.7958]
[1726797047629,0.4249,2454.1,2453.8,0.7958]
[1726797048020,0.3882,2454.0,2453.8,0.7958]
[1726797048432,0.3882,2454.0,2453.8,0.392]
[1726797051730,0.40737,2454.2,2453.8,0.392]
[1726797052234,0.40738,2454.1,2453.8,0.392]
[1726797053031,0.40737,2454.2,2453.8,0.392]
[1726797053331,0.8298,2454.3,2453.8,0.392]
[1726797053536,0.8298,2454.3,2453.9,0.4074]
[1726797053839,0.8298,2454.3,2454.0,0.4044]
[1726797054037,0.8298,2454.3,2454.0,0.81179]
[1726797054429,0.8298,2454.3,2454.1,0.4255]
[1726797054933,3.2078,2454.4,2454.2,0.3867]
[1726797055336,7.3288,2455.0,2454.3,3.18]
[1726797055543,3.2078,2455.0,2454.5,3.18]
[1726797055743,3.61504,2455.0,2454.6,0.3972]
[1726797055928,6.79504,2455.0,2454.6,0.3972]
[1726797056243,6.3878,2455.0,2454.6,0.3972]
[1726797056538,6.79504,2455.0,2454.6,0.3972]
[1726797057553,3.2078,2455.0,2454.7,0.40727]
[1726797058051,3.61503,2455.0,2454.6,0.7858]
[1726797058450,0.40725,2454.9,2454.6,0.3972]
[1726797059146,0.40728,2454.7,2454.4,3.2078]
[1726797059354,0.8184,2454.6,2454.4,3.2078]
[1726797060449,1.22569,2454.6,2454.4,3.2078]
[1726797060651,0.8184,2454.6,2454.4,3.2078]
[1726797060853,0.8184,2454.6,2454.2,1.24506]
[1726797061047,0.8184,2454.6,2454.2,0.8377]
[1726797061048,0.40732,2454.5,2454.2,0.8377]
[1726797061256,3.18,2454.4,2454.2,0.4248]
[1726797061446,0.40734,2454.3,2453.8,0.80962]
[1726797061646,0.40734,2454.3,2453.9,0.3967]
[1726797061953,0.3864,2454.2,2453.9,0.3967]
[1726797063158,0.3864,2454.2,2453.9,0.80411]
[1726797063655,4.00154,2454.4,2453.9,0.3967]
[1726797064254,4.00154,2454.4,2453.9,3.5767]
[1726797064456,3.2078,2454.4,2453.9,6.7845]
[1726797064657,0.385,2454.5,2454.0,0.40738]
[1726797065360,0.385,2454.5,2454.1,0.40737]
[1726797065560,0.385,2454.5,2454.2,0.3913]
[1726797065761,0.385,2454.5,2454.3,0.4128]
[1726797066958,0.385,2454.5,2454.3,0.8395]
[1726797067857,0.4226,2454.6,2454.3,4.0195]
[1726797068162,0.4226,2454.6,2454.3,4.42683]
[1726797068461,0.3947,2454.8,2454.5,3.5873]
[1726797068756,0.80196,2454.8,2454.3,4.0195]
[1726797068951,0.3947,2454.8,2454.4,0.40731]
[1726797069148,0.3947,2454.8,2454.4,0.40732]
[1726797069364,0.80197,2454.8,2454.3,1.24684]
[1726797069557,0.3947,2454.8,2454.4,0.40731]
[1726797069754,0.3947,2454.8,2454.4,3.58731]
[1726797070155,0.80197,2454.8,2454.4,3.18]
[1726797070561,0.4073,2454.6,2454.3,0.4128]
[1726797071065,0.40729,2454.7,2454.3,0.4128]
[1726797071261,0.3854,2454.5,2454.3,0.4128]
[1726797072266,0.3854,2454.5,2454.3,0.82014]
[1726797072451,6.7825,2454.8,2454.4,0.40732]
[1726797072452,3.6025,2454.8,2454.4,0.40732]
[1726797072653,3.6025,2454.8,2454.5,0.3871]
[1726797073261,0.40728,2454.7,2454.3,0.82014]
[1726797073562,0.40728,2454.7,2454.3,1.20724]
[1726797075059,4.00976,2454.8,2454.4,0.40732]
[1726797075257,0.06760022,2454.7,2454.4,0.40732]
[1726797075461,0.3947,2454.8,2454.4,0.40732]
[1726797075862,0.3947,2454.8,2454.4,0.40731]
[1726797076063,0.3947,2454.8,2454.5,0.40731]
[1726797076267,0.3947,2454.8,2454.6,0.3888]
[1726797076661,0.40728,2454.7,2454.3,3.5671]
[1726797076965,0.40728,2454.7,2454.4,0.4086]
[1726797077159,0.3947,2454.8,2454.4,0.4086]
[1726797077460,0.47488132,2454.7,2454.4,0.4086]
[1726797077654,0.40728,2454.7,2454.4,0.4086]
[1726797078563,0.80197,2454.8,2454.4,0.4086]
[1726797078763,0.3947,2454.8,2454.4,0.4086]
[1726797079067,0.4092,2454.9,2454.4,3.6164]
[1726797079257,0.06759539,2454.8,2454.5,0.40729]
[1726797079458,0.4092,2454.9,2454.6,0.79509]
[1726797079659,0.06759456,2454.8,2454.7,0.82007]
[1726797079866,0.79241,2455.1,2454.7,0.82007]
[1726797080065,0.06759041,2455.0,2454.7,0.82007]
[1726797080267,0.06759041,2455.0,2454.8,0.3919]
[1726797082262,0.40721,2455.1,2454.8,0.3919]
[1726797082562,3.6309,2455.2,2454.8,0.3919]
[1726797082563,4.03809,2455.2,2454.8,0.3919]
[1726797083061,0.40722,2455.1,2454.8,0.3919]
[1726797083261,4.4468,2455.2,2454.8,0.3919]
[1726797083566,0.40721,2455.1,2454.8,0.3919]
[1726797083771,4.0396,2455.2,2454.8,0.3919]
[1726797083772,0.40723,2455.0,2454.8,0.3919]
[1726797084169,0.4033,2454.9,2454.8,0.3919]
[1726797086373,0.4033,2454.9,2454.6,0.3878]
[1726797086568,0.4204,2454.8,2454.6,0.783]
[1726797088268,0.4204,2454.8,2454.6,0.3952]
[1726797088470,1.23607,2454.8,2454.6,0.3952]
[1726797088777,0.8288,2454.8,2454.6,0.3952]
[1726797089675,0.4204,2454.8,2454.6,0.3952]
[1726797090063,0.4204,2454.8,2454.6,0.8205]
[1726797090267,0.81055,2454.9,2454.6,0.8205]
[1726797091471,0.4033,2454.9,2454.6,0.3952]
[1726797091676,0.40728,2454.7,2454.2,0.40735]
[1726797091868,0.4063,2454.6,2454.3,0.40734]
[1726797092271,0.3924,2454.5,2454.3,0.40734]
[1726797092874,0.3924,2454.5,2454.2,1.20975]
[1726797093172,0.3924,2454.5,2454.2,0.8024]
[1726797093380,0.3924,2454.5,2454.1,3.2078]
[1726797093568,0.3924,2454.5,2453.9,0.40741]
[1726797093569,0.40734,2454.3,2453.9,0.40741]
[1726797094074,0.40734,2454.4,2453.8,1.2131]
[1726797094271,0.40737,2454.2,2453.8,1.2131]
[1726797094479,0.3908,2454.1,2453.8,1.2131]
[1726797094682,0.8,2454.1,2453.8,1.2131]
[1726797094976,0.8,2454.1,2453.8,1.62052]
[1726797095579,0.8,2454.1,2453.8,1.2131]
[1726797097484,0.8,2454.1,2453.8,1.62052]
[1726797098981,0.8,2454.1,2453.8,2.68630978]
[1726797099280,0.8,2454.1,2453.8,1.62052]
[1726797100482,1.20738,2454.1,2453.8,1.2131]
[1726797101182,1.20738,2454.1,2453.8,0.3865]
[1726797101583,0.8,2454.1,2453.8,0.3865]
[1726797102179,0.40732,2454.5,2453.8,3.5943]
[1726797102386,1.22092,2454.5,2454.0,0.40738]
[1726797102683,0.40733,2454.4,2454.1,0.8086]
[1726797103082,0.40733,2454.4,2454.2,0.4168]
[1726797104382,0.40734,2454.3,2453.9,0.83]
[1726797104573,0.8136,2454.5,2453.9,0.3961]
[1726797104980,0.40735,2454.3,2453.9,0.80351]
[1726797106183,0.40735,2454.3,2453.9,0.3961]
[1726797106384,0.40735,2454.3,2453.9,0.80351]
[1726797106688,0.40735,2454.3,2453.9,0.3961]
[1726797108183,0.8136,2454.5,2453.9,0.3961]
[1726797108379,0.40735,2454.3,2453.9,0.3961]
[1726797108789,0.40735,2454.3,2453.9,0.80351]
[1726797108984,0.40733,2454.4,2454.0,0.40739]
[1726797109494,0.40733,2454.4,2453.9,0.80349]
[1726797109684,0.40734,2454.4,2453.9,0.8035]
[1726797109891,0.40734,2454.4,2454.0,0.40739]
[1726797110589,1.22092,2454.5,2454.0,0.40739]
[1726797112696,0.06760897,2454.4,2454.0,0.40739]
[1726797113302,0.06760897,2454.4,2453.9,0.3961]
[1726797113303,0.47493897,2454.4,2453.9,0.80349]
[1726797113597,0.8136,2454.5,2454.0,0.40739]
[1726797113598,1.22092,2454.5,2454.0,0.40739]
[1726797113894,0.06760965,2454.4,2454.0,0.40739]
[1726797114384,0.06760965,2454.4,2454.1,0.40737]
[1726797114585,3.6151,2454.6,2454.2,3.9673]
[1726797114586,3.2078,2454.6,2454.2,3.9673]
[1726797114789,3.2078,2454.6,2454.5,0.40731]
[1726797115495,1.59963,2455.0,2454.5,0.40731]
[1726797115693,0.06759617,2454.9,2454.5,0.40731]
[1726797115891,0.7961,2455.0,2454.7,0.40727]
[1726797116092,0.7961,2455.0,2454.8,3.9844]
[1726797116391,0.7961,2455.0,2454.8,4.3717]
[1726797117191,0.7961,2455.0,2454.8,1.1917]
[1726797117395,0.7961,2455.0,2454.8,0.3993]
[1726797117698,0.0675943,2454.9,2454.8,0.3993]
[1726797117902,0.7961,2455.0,2454.8,0.3993]
[1726797118088,0.06759418,2454.9,2454.8,0.3993]
[1726797119195,3.2078,2454.9,2454.4,3.58732]
[1726797119402,3.2078,2454.9,2454.4,3.18]
[1726797119403,3.6175,2454.9,2454.4,3.18]
[1726797119591,4.02475,2454.9,2454.4,3.18]
[1726797120099,0.06759769,2454.8,2454.4,3.18]
[1726797120294,4.02475,2454.9,2454.4,3.18]
[1726797120695,4.02475,2454.9,2454.4,3.58732]
[1726797122197,3.61504,2454.9,2454.4,3.58732]
[1726797122399,3.2078,2454.9,2454.4,3.18]
[1726797122703,1.20334,2455.0,2454.4,3.58732]
[1726797122899,0.40724,2454.9,2454.4,3.58732]
[1726797125901,3.9761,2455.0,2454.3,0.4129]
[1726797126208,3.61511,2454.6,2454.3,0.4129]
[1726797126408,0.8203,2454.5,2454.3,0.4129]
[1726797129405,3.61505,2454.9,2454.4,3.18]
[1726797129610,0.4129,2454.7,2454.3,0.4129]
[1726797131401,0.82018,2454.7,2454.3,0.4129]
[1726797131598,0.4129,2454.7,2454.3,0.4129]
[1726797131807,0.4129,2454.7,2454.2,0.3873]
[1726797132108,3.6151,2454.6,2454.2,0.3873]
[1726797132303,0.3983,2454.5,2454.2,0.3873]
[1726797132505,0.4232,2454.4,2454.2,0.3873]
[1726797133007,0.4232,2454.4,2454.2,3.5673]
[1726797133202,0.82018,2454.7,2454.2,3.5673]
[1726797133407,0.82018,2454.7,2454.2,3.97465]
[1726797133910,0.82018,2454.7,2454.2,3.5673]
[1726797134106,0.82018,2454.7,2454.2,3.97466]
[1726797136499,0.40729,2454.6,2454.2,3.97466]
[1726797136901,0.40729,2454.6,2454.2,3.5673]
[1726797137109,0.40731,2454.5,2454.2,0.3873]
[1726797137315,0.4077,2454.4,2454.2,0.3873]
[1726797137813,0.422,2454.3,2454.2,0.3873]
[1726797138114,0.422,2454.3,2454.2,0.79466]
[1726797138816,0.4077,2454.4,2454.2,3.97466]
[1726797139012,0.4073,2454.6,2454.2,3.97466]
[1726797142318,0.8297,2454.7,2454.2,3.5673]
[1726797142519,4.121,2454.9,2454.7,0.40726]
[1726797142817,0.4016,2455.3,2455.0,0.40723]
[1726797143110,0.4016,2455.3,2455.0,0.40722]
[1726797143514,0.4016,2455.3,2454.9,0.40723]
[1726797144013,0.4072,2455.2,2454.8,1.2014]
[1726797144206,0.40721,2455.1,2454.8,1.2014]
[1726797144408,0.40722,2455.1,2454.8,1.2014]
[1726797144608,0.4197,2455.0,2454.8,1.2014]
[1726797146407,0.4214,2454.9,2454.8,1.2014]
[1726797148103,0.40719,2455.3,2454.8,1.60866]
[1726797148313,0.40718,2455.3,2454.8,4.78866]
[1726797148510,4.3186,2455.4,2454.8,4.3814]
[1726797148716,0.40718,2455.3,2454.9,0.40723]
[1726797150504,0.40718,2455.3,2454.8,4.78865]
[1726797150708,0.40718,2455.3,2454.9,0.40724]
[1726797150910,0.40718,2455.3,2454.8,1.2014]
[1726797151209,0.40718,2455.3,2454.8,1.60865]
[1726797151410,0.4072,2455.2,2454.8,1.2014]
[1726797151603,0.40719,2455.3,2454.8,1.60865]
[1726797151809,0.40719,2455.2,2454.8,1.60865]
[1726797152111,7.4986,2455.4,2454.8,1.60865]
[1726797152112,0.8336,2455.4,2454.9,3.18]
[1726797152310,0.8336,2455.4,2455.0,0.40721]
[1726797152606,0.4214,2455.4,2455.0,0.40721]
[1726797152811,0.82856,2455.4,2455.0,0.40721]
[1726797153418,0.82856,2455.4,2454.9,3.58723]
[1726797153619,0.82856,2455.4,2455.0,0.40722]
[1726797153812,0.82856,2455.4,2454.9,3.18]
[1726797153813,0.4214,2455.4,2454.9,3.18]
[1726797154016,3.6014,2455.4,2454.8,1.2014]
[1726797154220,0.40723,2455.0,2454.8,1.2014]
[1726797154413,0.40723,2455.0,2454.8,0.3925]
[1726797154414,0.4142,2454.9,2454.8,0.3925]
[1726797154720,0.8291,2454.9,2454.8,0.3925]
[1726797156413,1.23634,2454.9,2454.8,0.3925]
[1726797156618,1.23634,2454.9,2454.6,0.4087]
[1726797156820,1.23634,2454.9,2454.6,0.8346]
[1726797157118,0.8291,2454.9,2454.6,0.8346]
[1726797158624,0.8291,2454.9,2454.7,0.40727]
[1726797158819,0.8291,2454.9,2454.8,0.4137]
[1726797160826,0.8291,2454.9,2454.6,0.8346]
[1726797161014,0.8291,2454.9,2454.6,1.24189]
[1726797162818,0.8291,2454.9,2454.7,0.40727]
[1726797163019,3.485,2455.1,2454.8,0.40725]
[1726797163327,0.8266,2455.3,2455.0,0.40722]
[1726797163620,0.8266,2455.3,2455.1,0.3909]
[1726797163823,0.8266,2455.3,2455.1,0.8114]